bitfinex/quotes_BTCUSD_20241001
["timestamp","ask_amount","ask_price","bid_price","bid_amount"]
[1727812344053,0.02694915,61920.0,61919.0,0.193801]
[1727812344349,0.02694915,61920.0,61919.0,0.202801]
[1727812344547,0.02694915,61920.0,61919.0,0.015]
[1727812344548,0.00164,61920.0,61919.0,0.015]
[1727812344781,0.195438,61920.0,61919.0,0.009]
[1727812345070,0.20360223,61920.0,61919.0,0.014]
[1727812345324,0.00980423,61920.0,61919.0,0.014]
[1727812345590,0.00980423,61920.0,61919.0,0.005]
[1727812345844,0.00980423,61920.0,61919.0,0.012]
[1727812346138,0.41465222,61920.0,61919.0,0.012]
[1727812346841,0.58235222,61920.0,61919.0,0.012]
[1727812347085,0.193836,61908.0,61907.0,0.24056967]
[1727812347324,0.293814,61915.0,61910.0,0.193829]
[1727812347556,0.293814,61915.0,61907.0,0.43440867]
[1727812347557,0.03341072,61908.0,61907.0,0.43440867]
[1727812347786,0.02531762,61908.0,61907.0,0.193839]
[1727812348033,0.03341084,61908.0,61907.0,0.193839]
[1727812348289,0.02531762,61908.0,61907.0,0.193839]
[1727812348530,0.02531762,61908.0,61906.0,0.193841]
[1727812348531,0.03340725,61908.0,61906.0,0.193841]
[1727812348764,0.02531762,61908.0,61904.0,0.38769]
[1727812349011,0.00808328,61907.0,61906.0,0.193839]
[1727812349275,0.00808328,61907.0,61898.0,0.023]
[1727812349512,0.00808328,61907.0,61902.0,0.193853]
[1727812349756,0.28493677,61907.0,61906.0,0.002]
[1727812350017,0.10278328,61907.0,61906.0,0.002]
[1727812350245,0.10278328,61907.0,61901.0,0.387709]
[1727812350502,0.00808328,61907.0,61906.0,0.195842]
[1727812351009,0.0947,61917.0,61916.0,0.19381]
[1727812351480,0.00874049,61917.0,61916.0,0.18981]
[1727812351718,0.00164,61920.0,61919.0,0.193801]
[1727812352692,0.02695007,61920.0,61919.0,0.190801]
[1727812353428,0.02795007,61920.0,61919.0,0.197801]
[1727812353660,0.02895007,61920.0,61919.0,0.200801]
[1727812353927,0.00264,61920.0,61919.0,0.193801]
[1727812354162,0.00364,61920.0,61919.0,0.200801]
[1727812359685,0.00364,61920.0,61919.0,0.22703072]
[1727812359916,0.00364,61920.0,61919.0,0.30653072]
[1727812360164,0.00364,61920.0,61919.0,0.46298852]
[1727812360413,0.00364,61920.0,61919.0,0.4597588]
[1727812360634,0.00264,61920.0,61919.0,0.4527588]
[1727812361091,0.00264,61920.0,61919.0,0.4597588]
[1727812361301,0.00264,61920.0,61919.0,0.317301]
[1727812361302,0.00364,61920.0,61919.0,0.317301]
[1727812362245,0.00264,61920.0,61919.0,0.307301]
[1727812362666,0.02694816,61920.0,61919.0,0.307301]
[1727812362895,0.02694816,61920.0,61919.0,0.320301]
[1727812363091,0.02694816,61920.0,61919.0,0.293301]
[1727812363575,0.02694816,61920.0,61919.0,0.321301]
[1727812363803,0.389118,61940.0,61921.0,0.005]
[1727812363804,0.24056967,61939.0,61921.0,0.005]
[1727812364025,0.24056967,61939.0,61930.0,0.331767]
[1727812364248,0.24056967,61939.0,61938.0,0.65799152]
[1727812364460,0.24056967,61939.0,61938.0,0.81444932]
[1727812364695,0.001642,61940.0,61939.0,0.321739]
[1727812364971,0.001642,61940.0,61939.0,0.5576968]
[1727812365182,0.00164,61955.0,61946.0,0.316717]
[1727812365183,0.24056967,61947.0,61946.0,0.316717]
[1727812365416,0.00164,61955.0,61946.0,0.316717]
[1727812365417,0.00164,61955.0,61947.0,0.007]
[1727812365681,0.00164,61955.0,61954.0,0.55294152]
[1727812365914,0.00164,61955.0,61954.0,0.89389932]
[1727812366175,0.001642,61958.0,61954.0,0.89389932]
[1727812366176,0.001642,61958.0,61957.0,0.321682]
[1727812366418,0.001642,61958.0,61957.0,0.4801398]
[1727812367122,0.001642,61958.0,61957.0,0.4731398]
[1727812367545,0.001642,61958.0,61957.0,0.5011398]
[1727812368619,0.001642,61958.0,61957.0,0.4871398]
[1727812368856,0.001642,61958.0,61957.0,0.4731398]
[1727812369068,0.001642,61958.0,61957.0,0.5011398]
[1727812369573,0.001642,61958.0,61957.0,0.193682]
[1727812369835,0.001642,61958.0,61957.0,0.207682]
[1727812370067,0.001642,61958.0,61957.0,0.014]
[1727812370292,0.3517788,61958.0,61957.0,0.014]
[1727812370500,0.3517788,61958.0,61945.0,0.387436]
[1727812370501,0.2507998,61958.0,61948.0,0.24056967]
[1727812370927,0.2507998,61958.0,61957.0,0.005]
[1727812372274,0.2507998,61958.0,61949.0,0.193705]
[1727812372509,0.2507998,61958.0,61957.0,0.002]
[1727812372958,0.094342,61958.0,61957.0,0.197682]
[1727812373188,0.11963999,61958.0,61957.0,0.193682]
[1727812373838,0.11963999,61958.0,61952.0,0.387395]
[1727812374055,0.11963999,61958.0,61953.0,0.387388]
[1727812374269,0.11963999,61958.0,61950.0,0.387408]
[1727812374485,0.11963999,61958.0,61954.0,0.193691]
[1727812374916,0.11963999,61958.0,61957.0,0.002]
[1727812376285,0.11963999,61958.0,61957.0,0.004]
[1727812377161,0.31331899,61958.0,61957.0,0.004]
[1727812377395,0.46977679,61958.0,61957.0,0.004]
[1727812378245,0.46977679,61958.0,61957.0,0.002]
[1727812378465,0.193704,61950.0,61949.0,0.24056967]
[1727812378687,0.193704,61950.0,61945.0,0.24056967]
[1727812378688,0.193717,61946.0,61945.0,0.24056967]
[1727812378899,0.1564578,61950.0,61945.0,0.24056967]
[1727812379116,0.1564578,61950.0,61941.0,0.19373]
[1727812379117,0.193717,61946.0,61941.0,0.19373]
[1727812379340,0.02530162,61946.0,61945.0,0.19372]
[1727812379829,0.70485867,61954.0,61945.0,0.19372]
[1727812379830,0.001,61950.0,61945.0,0.387437]
[1727812380029,0.001,61950.0,61946.0,0.0032283]
[1727812380262,0.001,61950.0,61949.0,0.193707]
[1727812380494,0.001,61950.0,61949.0,0.88764217]
[1727812380728,0.001,61950.0,61949.0,0.88941432]
[1727812380944,0.001,61950.0,61949.0,0.90141432]
[1727812381380,0.001642,61958.0,61957.0,0.293682]
[1727812381835,0.001642,61958.0,61957.0,0.78961175]
[1727812382053,0.001642,61958.0,61957.0,0.80938932]
[1727812383171,0.001642,61958.0,61957.0,0.83738932]
[1727812383653,0.001642,61958.0,61957.0,0.83938932]
[1727812384313,0.001642,61958.0,61957.0,0.85438932]
[1727812385226,0.001642,61958.0,61957.0,0.82638932]
[1727812385683,0.001642,61958.0,61957.0,0.85438932]
[1727812385915,0.001642,61958.0,61957.0,0.84038932]
[1727812386358,0.001642,61958.0,61957.0,0.85438932]
[1727812387443,0.001642,61958.0,61957.0,0.85238932]
[1727812388129,0.001642,61958.0,61957.0,0.81438932]
[1727812388360,0.001642,61958.0,61957.0,0.4781398]
[1727812389064,0.001642,61958.0,61957.0,0.221682]
[1727812389293,0.001642,61958.0,61957.0,0.207682]
[1727812389513,0.001642,61958.0,61954.0,0.19369]
[1727812389731,0.001642,61958.0,61957.0,0.021]
[1727812389960,0.001642,61958.0,61957.0,0.013]
[1727812390854,0.4295788,61958.0,61957.0,0.013]
[1727812391109,0.387392,61953.0,61947.0,0.24056967]
[1727812391315,0.387397,61952.0,61947.0,0.24056967]
[1727812391592,0.39503614,61952.0,61947.0,0.24056967]
[1727812391837,0.39503614,61952.0,61948.0,0.24056967]
[1727812391838,0.00763914,61952.0,61948.0,0.24056967]
[1727812392062,0.387403,61951.0,61944.0,0.00082]
[1727812392301,0.00763914,61952.0,61944.0,0.00082]
[1727812392302,0.19372,61945.0,61944.0,0.00082]
[1727812392522,0.29262,61945.0,61944.0,0.00082]
[1727812392746,0.30023174,61945.0,61944.0,0.00082]
[1727812392972,0.48199244,61945.0,61944.0,0.00082]
[1727812393188,0.48199244,61945.0,61927.0,0.387551]
[1727812393189,0.52998452,61940.0,61927.0,0.193774]
[1727812393403,0.76904232,61940.0,61929.0,0.193768]
[1727812393638,0.44023982,61940.0,61928.0,0.387543]
[1727812394084,0.44023982,61940.0,61928.0,0.193772]
[1727812394298,0.44023982,61940.0,61929.0,0.193768]
[1727812394525,0.47589664,61940.0,61923.0,0.24056967]
[1727812394746,0.193778,61927.0,61923.0,0.24056967]
[1727812394969,0.33624952,61933.0,61923.0,0.24056967]
[1727812395226,0.0074029,61926.0,61923.0,0.24056967]
[1727812395489,0.193771,61929.0,61923.0,0.43435767]
[1727812395713,0.00735805,61925.0,61924.0,0.193782]
[1727812395933,0.001,61927.0,61925.0,0.193781]
[1727812396160,0.001,61927.0,61923.0,0.193788]
[1727812396379,0.00734798,61926.0,61923.0,0.193788]
[1727812397054,0.00734798,61926.0,61924.0,0.193782]
[1727812397268,0.00734798,61926.0,61922.0,0.193791]
[1727812397497,0.00734798,61926.0,61922.0,0.19379]
[1727812397725,0.00734798,61926.0,61925.0,0.193782]
[1727812398187,0.001,61927.0,61924.0,0.390571]
[1727812398188,0.001,61927.0,61926.0,0.193779]
[1727812398406,0.24056967,61933.0,61931.0,0.193762]
[1727812398625,0.02530783,61926.0,61925.0,0.387563]
[1727812398850,0.2509578,61939.0,61925.0,0.387563]
[1727812399060,0.193752,61935.0,61930.0,0.193764]
[1727812399327,0.193752,61935.0,61929.0,0.38754]
[1727812399328,0.0073282,61938.0,61931.0,0.387524]
[1727812399561,0.00732814,61934.0,61931.0,0.193762]
[1727812399769,0.02530673,61936.0,61930.0,0.24056967]
[1727812399999,0.00732826,61933.0,61932.0,0.193759]
[1727812400238,0.00732826,61933.0,61929.0,0.38754]
[1727812400239,0.193753,61935.0,61929.0,0.193769]
[1727812400507,0.00732826,61934.0,61930.0,0.387533]
[1727812400770,0.00732826,61934.0,61928.0,0.387545]
[1727812400771,0.00732826,61934.0,61928.0,0.387544]
[1727812401015,0.02530673,61936.0,61935.0,0.193751]
[1727812401299,0.006,61939.0,61938.0,0.193742]
[1727812401545,0.19372,61946.0,61932.0,0.387519]
[1727812401782,0.31807344,61947.0,61936.0,0.386496]
[1727812402021,0.31807344,61947.0,61930.0,0.00082]
[1727812402022,0.001,61934.0,61930.0,0.00082]
[1727812402276,0.001,61934.0,61932.0,0.24056967]
[1727812402520,0.387465,61941.0,61930.0,0.00082]
[1727812402753,0.19374,61939.0,61938.0,0.003]
[1727812403295,0.387441,61945.0,61938.0,0.003]
[1727812403296,0.004,61946.0,61938.0,0.003]
[1727812403520,0.193732,61942.0,61938.0,0.003]
[1727812403762,0.1564578,61945.0,61938.0,0.003]
[1727812404036,0.193724,61944.0,61938.0,0.193741]
[1727812404366,0.004,61946.0,61934.0,0.24056967]
[1727812404367,0.004,61946.0,61936.0,0.00322907]
[1727812404545,0.33786967,61949.0,61937.0,0.387489]
[1727812404762,0.33786967,61949.0,61938.0,0.00322867]
[1727812404975,0.0973,61949.0,61945.0,0.193717]
[1727812405191,0.0973,61949.0,61943.0,0.387451]
[1727812405411,0.0973,61949.0,61938.0,0.001]
[1727812405412,0.0973,61949.0,61948.0,0.19171]
[1727812405895,0.1013,61949.0,61948.0,0.19171]
[1727812406134,0.1033,61949.0,61943.0,0.38745]
[1727812406395,0.1033,61949.0,61944.0,0.24056967]
[1727812406396,0.1013,61949.0,61944.0,0.24056967]
[1727812406605,0.1013,61949.0,61940.0,0.387469]
[1727812406606,0.193711,61948.0,61942.0,0.193728]
[1727812406846,0.295007,61949.0,61943.0,0.193725]
[1727812407097,0.291007,61949.0,61939.0,0.387474]
[1727812407327,0.291007,61949.0,61943.0,0.193725]
[1727812407568,0.0983,61949.0,61948.0,0.002]
[1727812407800,0.291007,61949.0,61948.0,0.002]
[1727812408041,0.291007,61949.0,61937.0,0.387486]
[1727812408042,0.2557578,61949.0,61937.0,0.387486]
[1727812408328,0.19372,61945.0,61941.0,0.24056967]
[1727812408561,0.1564578,61948.0,61941.0,0.24056967]
[1727812408799,0.1023,61949.0,61939.0,0.387473]
[1727812408800,0.0973,61949.0,61942.0,0.193729]
[1727812409031,0.1003,61949.0,61944.0,0.193721]
[1727812409265,0.00737151,61948.0,61944.0,0.387441]
[1727812409505,0.00737151,61948.0,61947.0,0.193713]
[1727812410216,0.002,61949.0,61944.0,0.387441]
[1727812410462,0.002,61949.0,61948.0,0.19371]
[1727812410942,0.24056967,61956.0,61945.0,0.1564578]
[1727812410943,0.24056967,61956.0,61955.0,0.193688]
[1727812411190,0.002,61949.0,61937.0,0.1]
[1727812411421,0.193722,61945.0,61943.0,0.24056967]
[1727812411679,0.193718,61946.0,61943.0,0.24056967]
[1727812411970,0.17730516,61948.0,61943.0,0.193726]
[1727812411971,0.00740761,61944.0,61943.0,0.193726]
[1727812412475,0.0913,61948.0,61935.0,0.33624952]
[1727812412476,0.0913,61948.0,61947.0,0.193713]
[1727812413230,0.12448697,61948.0,61939.0,0.387477]
[1727812413488,0.0913,61948.0,61947.0,0.193713]
[1727812414005,0.02730153,61946.0,61945.0,0.19372]
[1727812414250,0.02530153,61946.0,61945.0,0.19372]
[1727812415145,0.02530153,61946.0,61945.0,0.19472]
[1727812416907,0.02530153,61946.0,61945.0,0.19372]
[1727812416908,0.02630153,61946.0,61945.0,0.19372]
[1727812417131,0.02630153,61946.0,61945.0,0.19572]
[1727812417358,0.02530153,61946.0,61945.0,0.19572]
[1727812417581,0.02530153,61946.0,61945.0,0.19372]
[1727812417800,0.02530153,61946.0,61945.0,0.20072]
[1727812418978,0.02530153,61946.0,61945.0,0.007]
[1727812419674,0.03270064,61946.0,61945.0,0.007]
[1727812420303,0.00739911,61946.0,61945.0,0.007]
[1727812420541,0.193717,61946.0,61945.0,0.007]
[1727812420756,0.193717,61946.0,61945.0,0.004]
[1727812421237,0.24056967,61953.0,61945.0,0.004]
[1727812421238,0.097942,61958.0,61945.0,0.004]
[1727812421454,0.193708,61949.0,61941.0,0.193731]
[1727812421678,0.193708,61949.0,61945.0,0.002]
[1727812421893,0.387371,61956.0,61945.0,0.002]
[1727812422110,0.193701,61952.0,61941.0,0.387462]
[1727812422346,0.39702747,61955.0,61937.0,0.24056967]
[1727812422779,0.19371,61949.0,61942.0,0.193729]
[1727812423006,0.39702747,61955.0,61941.0,0.24056967]
[1727812423218,0.46930292,61955.0,61941.0,0.43430167]
[1727812423423,0.196717,61946.0,61941.0,0.24056967]
[1727812423658,0.193717,61946.0,61941.0,0.24056967]
[1727812423870,0.197717,61946.0,61941.0,0.24056967]
[1727812424080,0.004,61946.0,61942.0,0.193728]
[1727812424300,0.46930292,61955.0,61942.0,0.387455]
[1727812424301,0.193705,61950.0,61942.0,0.387455]
[1727812424524,0.39702747,61955.0,61941.0,0.001]
[1727812424525,0.24656967,61955.0,61941.0,0.001]
[1727812424757,0.3501508,61954.0,61947.0,0.193713]
[1727812424977,0.025301,61949.0,61948.0,0.19371]
[1727812426083,0.025301,61949.0,61947.0,0.193713]
[1727812426332,0.025301,61949.0,61948.0,0.19371]
[1727812427899,0.025301,61949.0,61948.0,0.19871]
[1727812428109,0.025301,61949.0,61948.0,0.19471]
[1727812429593,0.025301,61949.0,61948.0,0.19671]
[1727812430852,0.219008,61949.0,61948.0,0.003]
[1727812431063,0.2409088,61949.0,61948.0,0.003]
[1727812431270,0.219008,61949.0,61948.0,0.003]
[1727812432540,0.3754658,61949.0,61948.0,0.003]
[1727812433605,0.3754658,61949.0,61948.0,0.002]
[1727812433821,0.3754658,61949.0,61943.0,0.00082]
[1727812433822,0.193718,61946.0,61943.0,0.00082]
[1727812434521,0.1827588,61949.0,61943.0,0.00082]
[1727812434727,0.193722,61945.0,61943.0,0.00082]
[1727812434971,0.193723,61944.0,61943.0,0.00082]
[1727812435224,0.67983431,61944.0,61943.0,0.00082]
[1727812435441,0.67983431,61944.0,61924.0,0.00082]
[1727812435442,0.193764,61931.0,61924.0,0.00082]
[1727812435655,0.33575983,61940.0,61925.0,0.19378]
[1727812435656,0.193761,61932.0,61925.0,0.19378]
[1727812435864,0.43568625,61937.0,61924.0,0.00082]
[1727812435865,0.04819025,61934.0,61924.0,0.00082]
[1727812436078,0.193764,61931.0,61930.0,0.00082]
[1727812436306,0.04819025,61933.0,61930.0,0.00082]
[1727812436517,0.193759,61933.0,61930.0,0.00082]
[1727812436743,0.04819025,61934.0,61930.0,0.195584]
[1727812436935,0.193757,61933.0,61930.0,0.00482]
[1727812437353,0.193757,61933.0,61930.0,0.00082]
[1727812437564,0.193757,61933.0,61930.0,0.00182]
[1727812438018,0.38749,61937.0,61931.0,0.193763]
[1727812438208,0.21906595,61933.0,61930.0,0.00182]
[1727812438629,0.02530795,61933.0,61930.0,0.00182]
[1727812438853,0.02530795,61933.0,61931.0,0.24056967]
[1727812439079,0.02530795,61933.0,61932.0,0.19376]
[1727812440694,0.21906495,61933.0,61932.0,0.001]
[1727812441144,0.31847195,61933.0,61932.0,0.001]
[1727812441388,0.47492975,61933.0,61932.0,0.001]
[1727812441626,0.37552275,61933.0,61932.0,0.001]
[1727812441911,0.516913,61933.0,61932.0,0.001]
[1727812442143,0.54100813,61933.0,61932.0,0.001]
[1727812442610,0.77480857,61933.0,61932.0,0.001]
[1727812442852,0.387064,61931.0,61930.0,0.00082]
[1727812443091,0.62284183,61925.0,61924.0,0.00082]
[1727812443311,0.77929963,61925.0,61924.0,0.00082]
[1727812443535,1.10985334,61925.0,61924.0,0.00082]
[1727812443756,1.19955334,61925.0,61924.0,0.00082]
[1727812443982,0.19381,61916.0,61915.0,0.24056967]
[1727812444202,0.68602763,61916.0,61915.0,0.24056967]
[1727812444442,0.00763262,61916.0,61915.0,0.24056967]
[1727812444657,0.00763262,61916.0,61914.0,0.193815]
[1727812444888,0.62953151,61921.0,61905.0,0.38769]
[1727812445109,0.00744622,61915.0,61900.0,0.24056967]
[1727812445355,0.53471651,61923.0,61916.0,0.19381]
[1727812445575,0.53471651,61923.0,61910.0,0.387656]
[1727812445576,0.00741148,61914.0,61910.0,0.387656]
[1727812445821,0.43436167,61922.0,61915.0,0.387623]
[1727812445822,0.193797,61921.0,61915.0,0.387623]
[1727812446046,0.43438167,61916.0,61912.0,0.193823]
[1727812446267,0.02531419,61914.0,61912.0,0.193822]
[1727812446486,0.02531419,61914.0,61911.0,0.193825]
[1727812446963,0.00743417,61913.0,61911.0,0.193825]
[1727812447179,0.00743417,61913.0,61912.0,0.193823]
[1727812447396,0.00743417,61913.0,61912.0,0.194823]
[1727812447614,0.00743417,61913.0,61912.0,0.193823]
[1727812448281,0.52230784,61913.0,61895.0,0.387749]
[1727812448546,0.52230784,61913.0,61906.0,0.24056967]
[1727812448547,0.1564578,61912.0,61906.0,0.24056967]
[1727812448774,0.1564578,61912.0,61899.0,0.62829367]
[1727812448775,0.193851,61904.0,61899.0,0.24056967]
[1727812448991,0.0928,61909.0,61907.0,0.24056967]
[1727812449281,0.286633,61909.0,61905.0,0.193844]
[1727812449499,0.387641,61913.0,61912.0,0.002]
[1727812449500,0.006,61913.0,61912.0,0.002]
[1727812449725,0.006,61913.0,61905.0,0.387687]
[1727812449948,0.02531419,61914.0,61913.0,0.19382]
[1727812450176,0.04813751,61927.0,61912.0,0.382645]
[1727812450177,0.24056967,61922.0,61912.0,0.382645]
[1727812450405,0.24056967,61922.0,61904.0,0.33575983]
[1727812450406,0.1564578,61921.0,61911.0,0.38765]
[1727812450660,0.1564578,61921.0,61914.0,0.24056967]
[1727812450908,0.292084,61925.0,61912.0,0.001]
[1727812451119,0.292084,61925.0,61913.0,0.24056967]
[1727812451120,0.0983,61925.0,61913.0,0.24056967]
[1727812451339,0.0983,61925.0,61924.0,0.193785]
[1727812451561,0.0983,61925.0,61916.0,0.00296761]
[1727812451792,0.0983,61925.0,61923.0,0.193787]
[1727812452017,0.24056967,61930.0,61921.0,0.387587]
[1727812452288,0.193777,61927.0,61922.0,0.19379]
[1727812452554,0.193777,61927.0,61916.0,0.193808]
[1727812452555,0.25429255,61927.0,61916.0,0.193808]
[1727812452814,0.16372007,61926.0,61913.0,0.43438667]
[1727812453115,0.193785,61924.0,61923.0,0.001]
[1727812453306,0.193785,61924.0,61913.0,0.24056967]
[1727812453307,0.193812,61916.0,61913.0,0.24056967]
[1727812453548,0.2010799,61915.0,61913.0,0.24056967]
[1727812453785,0.0072639,61915.0,61914.0,0.193817]
[1727812454023,0.0072639,61915.0,61912.0,0.193821]
[1727812454268,0.193807,61918.0,61913.0,0.001]
[1727812454525,0.0072639,61914.0,61913.0,0.19482]
[1727812455033,0.395563,61926.0,61914.0,0.387629]
[1727812455034,0.0946,61924.0,61914.0,0.387629]
[1727812455273,0.016,61926.0,61915.0,0.33575983]
[1727812455502,0.24056967,61931.0,61922.0,0.387579]
[1727812455737,0.3502258,61930.0,61924.0,0.193784]
[1727812455972,0.3502258,61930.0,61922.0,0.387578]
[1727812455973,0.1564578,61930.0,61922.0,0.19379]
[1727812456222,0.001,61924.0,61923.0,0.00322974]
[1727812456464,0.001,61924.0,61923.0,0.193789]
[1727812456705,0.0929,61932.0,61926.0,0.193778]
[1727812456706,0.286664,61932.0,61926.0,0.193778]
[1727812456993,0.02530936,61924.0,61923.0,0.193789]
[1727812457249,0.001,61931.0,61921.0,0.387589]
[1727812457488,0.0263081,61931.0,61930.0,0.193767]
[1727812458256,0.0263081,61931.0,61930.0,0.190767]
[1727812458494,0.0263081,61931.0,61917.0,0.0817]
[1727812458759,0.0253081,61931.0,61917.0,0.0817]
[1727812459004,0.0253081,61931.0,61930.0,0.004]
[1727812459247,0.54975119,61931.0,61930.0,0.004]
[1727812459485,0.54975119,61931.0,61907.0,0.1]
[1727812459486,0.38756,61926.0,61915.0,0.387623]
[1727812459715,0.38756,61926.0,61923.0,0.24456967]
[1727812459716,0.193785,61924.0,61923.0,0.24456967]
[1727812459959,0.193785,61924.0,61923.0,0.004]
[1727812460197,0.37555383,61924.0,61923.0,0.004]
[1727812460654,0.5241977,61924.0,61923.0,0.004]
[1727812460890,0.5241977,61924.0,61914.0,0.62819967]
[1727812460891,0.1564578,61924.0,61914.0,0.62819967]
[1727812461118,0.5440358,61923.0,61914.0,0.62819967]
[1727812461334,0.1564578,61923.0,61919.0,0.1938]
[1727812461556,0.20132104,61922.0,61917.0,0.193807]
[1727812461785,0.1564578,61921.0,61917.0,0.193807]
[1727812462009,0.1564578,61921.0,61915.0,0.387624]
[1727812462238,0.193815,61915.0,61911.0,0.193825]
[1727812462475,0.1564578,61921.0,61908.0,0.38849]
[1727812462476,0.486607,61919.0,61913.0,0.24056967]
[1727812462698,0.00752137,61914.0,61913.0,0.19382]
[1727812462918,0.15343866,61918.0,61908.0,0.00082]
[1727812463138,0.0075199,61914.0,61913.0,0.19382]
[1727812463360,0.099,61919.0,61908.0,0.00082]
[1727812463361,0.099,61919.0,61916.0,0.19463]
[1727812463589,0.099,61919.0,61916.0,0.00082]
[1727812463833,0.099,61919.0,61918.0,0.193804]
[1727812464057,0.12431372,61919.0,61916.0,0.00082]
[1727812464284,0.193807,61917.0,61916.0,0.00082]
[1727812464495,0.28077152,61919.0,61916.0,0.00082]
[1727812464787,0.12431372,61919.0,61917.0,0.387614]
[1727812465001,0.00750869,61918.0,61917.0,0.193806]
[1727812466108,0.02531372,61919.0,61918.0,0.193804]
[1727812467016,0.054732,61919.0,61917.0,0.003]
[1727812467249,0.193804,61918.0,61917.0,0.003]
[1727812467721,0.20133709,61918.0,61916.0,0.00082]
[1727812467949,0.00753309,61918.0,61917.0,0.202807]
[1727812468176,0.00753309,61918.0,61917.0,0.193807]
[1727812468646,0.002,61918.0,61917.0,0.19521763]
[1727812468886,0.004,61918.0,61917.0,0.1970367]
[1727812469339,0.004,61918.0,61916.0,0.38844]
[1727812469340,0.0956,61928.0,61921.0,0.387584]
[1727812469562,0.24056967,61922.0,61918.0,0.193802]
[1727812469802,0.24056967,61922.0,61917.0,0.006]
[1727812469803,0.5440168,61927.0,61917.0,0.25256967]
[1727812470027,0.5440168,61927.0,61918.0,0.387605]
[1727812470028,0.00752726,61921.0,61918.0,0.387605]
[1727812470264,0.193786,61924.0,61917.0,0.399611]
[1727812470496,0.0956,61928.0,61917.0,0.012]
[1727812470497,0.00752726,61920.0,61917.0,0.012]
[1727812470735,0.21161431,61919.0,61917.0,0.012]
[1727812470968,0.21161431,61919.0,61916.0,0.00082]
[1727812470969,0.193804,61918.0,61916.0,0.00082]
[1727812471232,0.20227452,61918.0,61917.0,0.019]
[1727812471470,0.35873232,61918.0,61917.0,0.019]
[1727812471686,0.193807,61917.0,61916.0,0.00082]
[1727812471902,0.50671158,61917.0,61916.0,0.00082]
[1727812472124,0.51418242,61917.0,61916.0,0.00082]
[1727812472825,0.51718242,61917.0,61916.0,0.00082]
[1727812473042,0.51918242,61917.0,61916.0,0.00082]
[1727812473265,0.36273564,61917.0,61916.0,0.00082]
[1727812474188,0.35973564,61917.0,61916.0,0.00082]
[1727812474433,0.36373564,61917.0,61916.0,0.00182]
[1727812474652,0.36973564,61917.0,61916.0,0.00282]
[1727812474889,0.51418242,61917.0,61916.0,0.00082]
[1727812475104,0.51918242,61917.0,61916.0,0.00082]
[1727812475335,0.52418242,61917.0,61916.0,0.00082]
[1727812475554,0.21127784,61917.0,61916.0,0.00082]
[1727812475771,0.23659305,61917.0,61916.0,0.00082]
[1727812475988,0.04278605,61917.0,61916.0,0.00082]
[1727812476213,0.23659305,61917.0,61916.0,0.00082]
[1727812476433,0.04278605,61917.0,61916.0,0.00082]
[1727812477101,0.03778605,61917.0,61916.0,0.00082]
[1727812477350,0.22659305,61917.0,61916.0,0.00082]
[1727812477578,0.35066208,61917.0,61916.0,0.00082]
[1727812477808,0.23159305,61917.0,61916.0,0.00082]
[1727812478029,0.22659305,61917.0,61916.0,0.00082]
[1727812478257,0.23259305,61917.0,61916.0,0.00082]
[1727812479448,0.43715007,61917.0,61916.0,0.00082]
[1727812480119,0.43415007,61917.0,61916.0,0.00082]
[1727812480371,0.43415007,61917.0,61908.0,0.00082]
[1727812480372,0.1,61916.0,61908.0,0.00082]
[1727812480623,0.72849183,61909.0,61908.0,0.00082]
[1727812480864,0.04821725,61909.0,61908.0,0.00082]
[1727812481089,0.0090442,61909.0,61908.0,0.00082]
[1727812481322,0.0090442,61909.0,61908.0,0.194656]
[1727812481542,0.04821725,61913.0,61908.0,0.00182]
[1727812481754,0.10542529,61916.0,61908.0,0.195656]
[1727812481755,0.00771783,61909.0,61908.0,0.195656]
[1727812481974,0.00771783,61909.0,61908.0,0.194656]
[1727812482187,0.04821725,61916.0,61909.0,0.387661]
[1727812482406,0.24202825,61916.0,61911.0,0.193825]
[1727812482631,0.0077171,61915.0,61908.0,0.00082]
[1727812482861,0.38763,61915.0,61908.0,0.00082]
[1727812483095,0.193814,61915.0,61909.0,0.19383]
[1727812483318,0.193814,61915.0,61908.0,0.00082]
[1727812483319,0.00771751,61914.0,61908.0,0.00282]
[1727812483538,0.00771751,61914.0,61913.0,0.19382]
[1727812483773,0.04821725,61923.0,61911.0,0.33898998]
[1727812484038,0.24056967,61920.0,61914.0,0.0785]
[1727812484257,0.02531298,61921.0,61919.0,0.1938]
[1727812484479,0.02531298,61921.0,61920.0,0.193798]
[1727812484697,0.02531298,61921.0,61918.0,0.193802]
[1727812484914,0.02531298,61921.0,61914.0,0.0785]
[1727812485147,0.02531298,61921.0,61918.0,0.193804]
[1727812485410,0.02531298,61921.0,61916.0,0.387618]
[1727812485593,0.02631298,61921.0,61920.0,0.193798]
[1727812485814,0.02631298,61921.0,61919.0,0.006]
[1727812486031,0.02631298,61921.0,61919.0,0.199798]
[1727812486257,0.02631298,61921.0,61920.0,0.193798]
[1727812486826,0.02531298,61921.0,61920.0,0.193798]
[1727812487706,0.02531298,61921.0,61920.0,0.199798]
[1727812487707,0.02631298,61921.0,61920.0,0.199798]
[1727812488385,0.02631298,61921.0,61920.0,0.195798]
[1727812488386,0.02795298,61921.0,61920.0,0.195798]
[1727812488621,0.02795298,61921.0,61920.0,0.93511687]
[1727812488838,0.02795298,61921.0,61920.0,0.89671563]
[1727812489291,0.02795298,61921.0,61920.0,0.89871563]
[1727812489513,0.02695298,61921.0,61920.0,0.90906604]
[1727812489731,0.02695298,61921.0,61920.0,0.91406604]
[1727812489732,0.02795298,61921.0,61920.0,0.91406604]
[1727812489954,0.02795298,61921.0,61920.0,0.90906604]
[1727812490188,0.02795298,61921.0,61920.0,0.91606604]
[1727812490418,0.02695298,61921.0,61920.0,0.90206604]
[1727812490662,0.02795298,61921.0,61920.0,0.90806604]
[1727812490889,0.00264,61921.0,61920.0,0.92206604]
[1727812491103,0.00164,61921.0,61920.0,0.90206604]